[Event "11th LCC FIDE Open 2019"]
[Site "London"]
[Date "2019.12.02"]
[Round "5.30"]
[White "Royal, Shreyas"]
[Black "Smith, Andrew P"]
[Result "*"]
[ECO "A61"]
[WhiteElo "1941"]
[BlackElo "2172"]
[Annotator "ChessBase"]
[PlyCount "27"]
[EventDate "2019.11.29"]
[EventType "swiss"]
[EventCountry "ENG"]
[SourceTitle "playchess.com"]
[Source "ChessBase"]
[SourceQuality "1"]
[TimeControl "40/5400+30:1800+30"]

1. d4 {[%emt 0:00:00]} Nf6 {[%emt 0:02:50]} 2. c4 {[%emt 0:00:36]} c5 {[%emt 0:00:22]} 3. d5 {[%emt 0:01:46]} e6 {[%emt 0:00:31]} 4. Nc3 {[%emt 0:01:42]} exd5 {[%emt 0:00:33]} 5. cxd5 {[%emt 0:00:12]} d6 {[%emt 0:00:05]} 6. Nf3 {[%emt 0:02:40]} g6 {[%emt 0:00:09]} 7. Bf4 {[%emt 0:00:55]} a6 {[%emt 0:00:51]} 8. a4 {[%emt 0:00:05]} Bg7 {[%emt 0:00:59]} 9. h3 {[%emt 0:03:15]} O-O {[%emt 0:00:42]} 10. e3 {[%emt 0:01:24]} Qe7 {[%emt 0:17:31]} 11. Be2 {[%emt 0:06:12]} Nbd7 {[%emt 0:03:51]} 12. O-O {[%emt 0:01:58]} Nh5 {[%emt 0:06:41]} 13. Bh2 {[%emt 0:05:37]} f5 {[%emt 0:00:26]} 14. Re1 {[%emt 0:08:23]} *

[Event "11th LCC FIDE Open 2019"]
[Site "London"]
[Date "2019.12.02"]
[Round "5.31"]
[White "Grigoryan, Meri"]
[Black "Clarke, Brandon Gi"]
[Result "*"]
[ECO "B25"]
[WhiteElo "2050"]
[BlackElo "2431"]
[Annotator "ChessBase"]
[PlyCount "24"]
[EventDate "2019.11.29"]
[EventType "swiss"]
[EventCountry "ENG"]
[SourceTitle "playchess.com"]
[Source "ChessBase"]
[SourceQuality "1"]
[TimeControl "40/5400+30:1800+30"]

1. e4 {[%emt 0:11:05]} c5 {[%emt 0:00:07]} 2. Nc3 {[%emt 0:00:12]} Nc6 {[%emt 0:00:46]} 3. f4 {[%emt 0:00:19]} g6 {[%emt 0:00:18]} 4. Nf3 {[%emt 0:00:20]} Bg7 {[%emt 0:00:06]} 5. g3 {[%emt 0:03:24]} d6 {[%emt 0:02:58]} 6. Bg2 {[%emt 0:01:45]} e6 {[%emt 0:00:03]} 7. O-O {[%emt 0:00:49]} Nge7 {[%emt 0:00:02]} 8. d3 {[%emt 0:01:55]} O-O {[%emt 0:00:03]} 9. Kh1 {[%emt 0:03:07]} b6 {[%emt 0:00:57]} 10. g4 {[%emt 0:10:35]} f5 {[%emt 0:06:15]} 11. exf5 {[%emt 0:07:00]} exf5 {[%emt 0:03:48]} 12. g5 {[%emt 0:01:45]} d5 {[%emt 0:03:03]} *

[Event "11th LCC FIDE Open 2019"]
[Site "London"]
[Date "2019.12.02"]
[Round "5.31"]
[White "Walker, Samuel A"]
[Black "Ahn, Sungmin"]
[Result "1/2-1/2"]
[ECO "A07"]
[WhiteElo "2039"]
[BlackElo "1780"]
[Annotator "NA RC"]
[PlyCount "97"]
[EventDate "2019.11.29"]
[EventType "swiss"]
[EventCountry "ENG"]
[SourceTitle "playchess.com"]
[Source "ChessBase"]
[SourceQuality "1"]
[TimeControl "40/5400+30:1800+30"]

1. Nf3 {[%emt 0:00:00]} g6 {[%emt 0:00:00]} 2. g3 {[%emt 0:00:01]} Bg7 {[%emt 0:00:00]} 3. Bg2 {[%emt 0:00:05]} e5 {[%emt 0:00:31]} 4. d3 {[%emt 0:00:20]} d5 {[%emt 0:00:59]} 5. O-O {[%emt 0:00:24]} Ne7 {[%emt 0:00:39]} 6. c4 {[%emt 0:01:31]} c6 {[%emt 0:01:01]} 7. e3 {[%emt 0:06:14] A07: Réti Opening: New York and Capablanca Systems} (7. Nc3 O-O 8. Qc2 d4 9. Ne4 f5 10. Ned2 c5 11. b4 Nbc6 12. bxc5 e4 13. Ng5 h6 14. Ngxe4 fxe4 15. Nxe4 {0-1 (27) Petrosian,T (2598)-Cheparinov,I (2709) St Petersburg 2018}) 7... O-O {[%emt 0:01:22]} 8. Nc3 {[%emt 0:01:05]} h6 $146 {[%emt 0:04:35]} ({Predecessor:} 8... dxc4 9. dxc4 Qxd1 10. Rxd1 Be6 11. Nd2 Rd8 12. b3 Bg4 13. f3 e4 14. Bb2 exf3 15. Nxf3 {1-0 (48) Bilgin,M (1888)-Ciblakbas,S (1698) Konya 2018}) 9. Qc2 {[%emt 0:03:30]} Be6 {[%emt 0:01:44]} 10. b3 {[%emt 0:01:06]} Na6 {[%emt 0:12:52]} 11. a3 {[%emt 0:03:39]} Qd7 {[%emt 0:02:38]} 12. Re1 {[%emt 0:00:22]} Bh3 {[%emt 0:03:13]} 13. Bh1 {[%emt 0:00:12]} Nc7 {[%emt 0:12:09]} 14. Bb2 {[%emt 0:03:13]} Ne6 {[%emt 0:06:44]} 15. Rac1 {[%emt 0:01:58]} Rac8 {[%emt 0:00:05]} 16. Qb1 {[%emt 0:00:39]} g5 {[%emt 0:00:55]} 17. Ne2 {[%emt 0:03:35]} Ng6 {[%emt 0:00:56]} 18. b4 {[%emt 0:07:43]} g4 {[%emt 0:06:06]} 19. cxd5 {[%emt 0:00:28]} cxd5 {[%emt 0:01:01]} ({Don't play} 19... gxf3 $6 20. dxe6 fxe6 21. Nc3 $11) 20. Nd2 {[%emt 0:00:09]} Ng5 {[%emt 0:00:27]} 21. Qa2 {[%emt 0:02:59]} Ne7 {[%emt 0:02:43]} 22. Rxc8 {[%emt 0:12:02]} Rxc8 {[%emt 0:00:02]} 23. Rc1 {[%emt 0:00:13]} Rc6 {[%emt 0:02:35]} 24. Rxc6 {[%emt 0:02:00]} bxc6 {[%emt 0:00:05]} 25. Qb3 {[%emt 0:01:51]} Qf5 {[%emt 0:10:33]} 26. e4 {[%emt 0:03:30]} Qd7 {[%emt 0:05:05]} 27. Nc3 {[%emt 0:07:58]} d4 {[%emt 0:00:15]} 28. Na4 {[%emt 0:00:11]} Ne6 {[%emt 0:00:48]} 29. Qc4 {[%emt 0:03:23]} Qb7 {[%emt 0:02:57]} 30. Nc5 {[%emt 0:05:33]} Nxc5 {[%emt 0:02:04]} 31. Qxc5 {[%emt 0:00:04]} Qb5 {[%emt 0:04:41]} 32. Qc2 {[%emt 0:06:35]} (32. Qxe7 $2 Qxd3 33. Bc1 Qc2 $19) 32... a5 {[%emt 0:01:30]} 33. Qc4 {[%emt 0:01:58]} ({Better is} 33. bxa5 $14 Qxa5 34. Bg2) 33... axb4 {[%emt 0:00:34]} 34. axb4 {[%emt 0:00:21]} Bf8 {[%emt 0:00:27]} 35. Bg2 {[%emt 0:00:54]} Bxg2 {[%emt 0:00:17]} 36. Kxg2 {[%emt 0:00:03]} Nc8 {[%emt 0:00:19]} 37. Qc2 {[%emt 0:04:17]} Qxb4 {[%emt 0:00:35]} 38. Nc4 {[%emt 0:00:40]} Qb5 {[%emt 0:00:39]} 39. Qe2 {[%emt 0:00:16]} h5 {[%emt 0:00:37]} 40. h3 {[%emt 0:00:37]} gxh3+ {[%emt 0:01:11]} 41. Kxh3 {[%emt 0:30:08]} Nb6 {[%emt 0:31:02]} 42. Nxb6 {[%emt 0:08:34]} Qxb6 {[%emt 0:00:01]} 43. Bc1 {[%emt 0:00:23]} Qb1 {[%emt 0:01:58]} 44. Qd2 {[%emt 0:00:46]} Bg7 {[%emt 0:04:01]} 45. g4 {[%emt 0:02:02]} hxg4+ {[%emt 0:00:12]} 46. Kxg4 {[%emt 0:00:04]} Qb3 {[%emt 0:00:14]} 47. Kf3 {[%emt 0:00:58]} c5 {[%emt 0:00:09]} 48. Kg2 {[%emt 0:02:35]} c4 $11 {[%emt 0:00:25]} 49. Qg5 {[%emt 0:01:52]} 1/2-1/2

[Event "11th LCC FIDE Open 2019"]
[Site "London"]
[Date "2019.12.02"]
[Round "5.32"]
[White "Zujev, Oleg"]
[Black "Nilssen, Ellen Fredericia"]
[Result "1/2-1/2"]
[ECO "D36"]
[WhiteElo "2316"]
[BlackElo "2004"]
[Annotator "ChessBase"]
[PlyCount "71"]
[EventDate "2019.11.29"]
[EventType "swiss"]
[EventCountry "ENG"]
[SourceTitle "playchess.com"]
[Source "ChessBase"]
[SourceQuality "1"]
[TimeControl "40/5400+30:1800+30"]

1. d4 {[%emt 0:00:00]} d5 {[%emt 0:00:00]} 2. c4 {[%emt 0:00:00]} e6 {[%emt 0:00:00]} 3. Nc3 {[%emt 0:00:00]} Nf6 {[%emt 0:00:00]} 4. cxd5 {[%emt 0:00:10]} exd5 {[%emt 0:00:00]} 5. Bg5 {[%emt 0:00:03]} Be7 {[%emt 0:00:02]} 6. e3 {[%emt 0:00:14]} c6 {[%emt 0:00:05]} 7. Bd3 {[%emt 0:00:08]} Nbd7 {[%emt 0:00:05]} 8. Qc2 {[%emt 0:00:30]} Nh5 {[%emt 0:00:17]} 9. Bxe7 {[%emt 0:00:44]} Qxe7 {[%emt 0:00:07]} 10. Nge2 {[%emt 0:00:10]} g6 {[%emt 0:00:24]} 11. O-O {[%emt 0:03:38]} O-O {[%emt 0:00:06]} 12. Na4 {[%emt 0:08:02]} Ndf6 {[%emt 0:13:38]} 13. Qc5 {[%emt 0:10:55]} Re8 {[%emt 0:06:55]} 14. b4 {[%emt 0:02:28]} Ne4 {[%emt 0:14:32]} 15. Qxe7 {[%emt 0:01:00]} Rxe7 {[%emt 0:00:09]} 16. Rfc1 {[%emt 0:02:58]} Nd6 {[%emt 0:08:10]} 17. Nec3 {[%emt 0:19:54]} Nf6 {[%emt 0:04:07]} 18. b5 {[%emt 0:14:44]} cxb5 {[%emt 0:04:52]} 19. Nxb5 {[%emt 0:00:16]} Nxb5 {[%emt 0:00:25]} 20. Bxb5 {[%emt 0:00:06]} Bf5 {[%emt 0:01:43]} 21. Rc5 {[%emt 0:04:47]} Rd8 {[%emt 0:04:38]} 22. Rac1 {[%emt 0:03:22]} Ne4 {[%emt 0:02:30]} 23. Rc7 {[%emt 0:00:37]} Rxc7 {[%emt 0:00:07]} 24. Rxc7 {[%emt 0:00:04]} Rc8 {[%emt 0:00:06]} 25. Rxc8+ {[%emt 0:00:14]} Bxc8 {[%emt 0:00:02]} 26. f3 {[%emt 0:01:12]} Nd6 {[%emt 0:04:40]} 27. Bd3 {[%emt 0:06:19]} Bf5 {[%emt 0:07:21]} 28. Be2 {[%emt 0:00:39]} Bd7 {[%emt 0:02:50]} 29. Nc5 {[%emt 0:06:48]} Bc6 {[%emt 0:00:06]} 30. Kf2 {[%emt 0:00:35]} Kf8 {[%emt 0:05:15]} 31. Bd3 {[%emt 0:01:07]} a5 {[%emt 0:04:08]} 32. Ke2 {[%emt 0:03:34]} Ke7 {[%emt 0:02:09]} 33. Nb3 {[%emt 0:05:47]} b6 {[%emt 0:00:45]} 34. Nd2 {[%emt 0:00:14]} Nb5 {[%emt 0:01:23]} 35. Nb1 {[%emt 0:00:24]} Ke6 {[%emt 0:04:19]} 36. Kd2 {[%emt 0:01:25] Ke5} 1/2-1/2

[Event "11th LCC FIDE Open 2019"]
[Site "London"]
[Date "2019.12.02"]
[Round "5.33"]
[White "Zujev, Oleg"]
[Black "Nilssen, Ellen Fredericia"]
[Result "*"]
[ECO "D36"]
[WhiteElo "2316"]
[BlackElo "2004"]
[Annotator "ChessBase"]
[PlyCount "31"]
[EventDate "2019.11.29"]
[EventType "swiss"]
[EventCountry "ENG"]
[SourceTitle "playchess.com"]
[Source "ChessBase"]
[SourceQuality "1"]
[TimeControl "40/5400+30:1800+30"]

1. d4 {[%emt 0:00:00]} d5 {[%emt 0:00:00]} 2. c4 {[%emt 0:00:00]} e6 {[%emt 0:00:00]} 3. Nc3 {[%emt 0:00:00]} Nf6 {[%emt 0:00:00]} 4. cxd5 {[%emt 0:00:10]} exd5 {[%emt 0:00:00]} 5. Bg5 {[%emt 0:00:03]} Be7 {[%emt 0:00:02]} 6. e3 {[%emt 0:00:14]} c6 {[%emt 0:00:05]} 7. Bd3 {[%emt 0:00:08]} Nbd7 {[%emt 0:00:05]} 8. Qc2 {[%emt 0:00:30]} Nh5 {[%emt 0:00:17]} 9. Bxe7 {[%emt 0:00:44]} Qxe7 {[%emt 0:00:07]} 10. Nge2 {[%emt 0:00:10]} g6 {[%emt 0:00:24]} 11. O-O {[%emt 0:03:38]} O-O {[%emt 0:00:06]} 12. Na4 {[%emt 0:08:02]} Ndf6 {[%emt 0:13:38]} 13. Qc5 {[%emt 0:10:55]} Re8 {[%emt 0:06:55]} 14. b4 {[%emt 0:02:28]} Ne4 {[%emt 0:14:32]} 15. Qxe7 {[%emt 0:01:00]} Rxe7 {[%emt 0:00:09]} 16. Rfc1 {[%emt 0:02:58]} *

[Event "11th LCC FIDE Open 2019"]
[Site "London"]
[Date "2019.12.02"]
[Round "5.33"]
[White "Cumming, Rhys"]
[Black "Karumazondo, Ragarirai Ernest"]
[Result "1-0"]
[ECO "A52"]
[WhiteElo "2284"]
[BlackElo "1972"]
[Annotator "ChessBase"]
[PlyCount "45"]
[EventDate "2019.11.29"]
[EventType "swiss"]
[EventCountry "ENG"]
[SourceTitle "playchess.com"]
[Source "ChessBase"]
[SourceQuality "1"]
[TimeControl "40/5400+30:1800+30"]

1. d4 {[%emt 0:00:00]} Nf6 {[%emt 0:03:02]} 2. c4 {[%emt 0:00:00]} e5 {[%emt 0:00:34]} 3. dxe5 {[%emt 0:01:05]} Ng4 {[%emt 0:00:11]} 4. Bf4 {[%emt 0:00:32]} g5 {[%emt 0:02:53]} 5. Bd2 {[%emt 0:01:13]} Nxe5 {[%emt 0:04:33]} 6. Nf3 {[%emt 0:01:28]} Bg7 {[%emt 0:06:08]} 7. Nxe5 {[%emt 0:00:18]} Bxe5 {[%emt 0:00:09]} 8. Nc3 {[%emt 0:00:06]} d6 {[%emt 0:00:44]} 9. g3 {[%emt 0:02:09]} Nc6 {[%emt 0:01:48]} 10. Bg2 {[%emt 0:00:31]} Be6 {[%emt 0:00:29]} 11. h4 {[%emt 0:11:26]} g4 {[%emt 0:06:10]} 12. Nd5 {[%emt 0:00:47]} h6 {[%emt 0:09:05]} 13. Qc1 {[%emt 0:15:17]} Bg7 {[%emt 0:09:06]} 14. Bc3 {[%emt 0:04:07]} Ne5 {[%emt 0:02:09]} 15. Nf4 {[%emt 0:05:09]} c6 {[%emt 0:05:01]} 16. Nh5 {[%emt 0:12:39]} Bf8 {[%emt 0:04:31]} 17. Qf4 {[%emt 0:07:18]} Qc7 {[%emt 0:11:34]} 18. Nf6+ {[%emt 0:02:10]} Kd8 {[%emt 0:02:01]} 19. Rd1 {[%emt 0:09:42]} Kc8 {[%emt 0:01:50]} 20. c5 {[%emt 0:04:39]} Ng6 {[%emt 0:05:55]} 21. Qe3 {[%emt 0:00:07]} Bg7 {[%emt 0:13:23]} 22. h5 {[%emt 0:02:40]} Nf8 {[%emt 0:02:24]} 23. Ne8 {[%emt 0:01:25]} 1-0

[Event "11th LCC FIDE Open 2019"]
[Site "London"]
[Date "2019.12.02"]
[Round "5.34"]
[White "Cumming, Rhys"]
[Black "Karumazondo, Ragarirai Ernest"]
[Result "*"]
[ECO "A52"]
[WhiteElo "2284"]
[BlackElo "1972"]
[Annotator "ChessBase"]
[PlyCount "24"]
[EventDate "2019.11.29"]
[EventType "swiss"]
[EventCountry "ENG"]
[SourceTitle "playchess.com"]
[Source "ChessBase"]
[SourceQuality "1"]
[TimeControl "40/5400+30:1800+30"]

1. d4 {[%emt 0:00:00]} Nf6 {[%emt 0:03:33]} 2. c4 {[%emt 0:00:00]} e5 {[%emt 0:00:34]} 3. dxe5 {[%emt 0:01:05]} Ng4 {[%emt 0:00:11]} 4. Bf4 {[%emt 0:00:32]} g5 {[%emt 0:02:53]} 5. Bd2 {[%emt 0:01:13]} Nxe5 {[%emt 0:04:33]} 6. Nf3 {[%emt 0:01:28]} Bg7 {[%emt 0:06:08]} 7. Nxe5 {[%emt 0:00:18]} Bxe5 {[%emt 0:00:09]} 8. Nc3 {[%emt 0:00:06]} d6 {[%emt 0:00:43]} 9. g3 {[%emt 0:02:10]} Nc6 {[%emt 0:01:48]} 10. Bg2 {[%emt 0:00:31]} Be6 {[%emt 0:00:29]} 11. h4 {[%emt 0:11:26]} g4 {[%emt 0:06:10]} 12. Nd5 {[%emt 0:00:47]} h6 {[%emt 0:09:05]} *

[Event "11th LCC FIDE Open 2019"]
[Site "London"]
[Date "2019.12.02"]
[Round "5.35"]
[White "Akots, Gabor"]
[Black "Ditmas, Hugh"]
[Result "*"]
[ECO "B22"]
[WhiteElo "2221"]
[BlackElo "1961"]
[Annotator "ChessBase"]
[PlyCount "32"]
[EventDate "2019.11.29"]
[EventType "swiss"]
[EventCountry "ENG"]
[SourceTitle "playchess.com"]
[Source "ChessBase"]
[SourceQuality "1"]
[TimeControl "40/5400+30:1800+30"]

1. e4 {[%emt 0:00:00]} c5 {[%emt 0:00:00]} 2. c3 {[%emt 0:00:00]} Nf6 {[%emt 0:00:00]} 3. e5 {[%emt 0:00:02]} Nd5 {[%emt 0:00:00]} 4. d4 {[%emt 0:00:15]} cxd4 {[%emt 0:00:12]} 5. Nf3 {[%emt 0:00:16]} Nc6 {[%emt 0:00:25]} 6. Bc4 {[%emt 0:00:30]} e6 {[%emt 0:00:08]} 7. cxd4 {[%emt 0:01:03]} d6 {[%emt 0:00:12]} 8. O-O {[%emt 0:01:30]} Be7 {[%emt 0:00:15]} 9. Qe2 {[%emt 0:02:08]} O-O {[%emt 0:00:16]} 10. Rd1 {[%emt 0:02:02]} Bd7 {[%emt 0:02:17]} 11. Nc3 {[%emt 0:02:06]} Nxc3 {[%emt 0:02:44]} 12. bxc3 {[%emt 0:00:05]} dxe5 {[%emt 0:02:18]} 13. dxe5 {[%emt 0:00:10]} Qc7 {[%emt 0:01:02]} 14. Bd3 {[%emt 0:00:37]} Rfd8 {[%emt 0:02:07]} 15. h4 {[%emt 0:03:16]} Be8 {[%emt 0:07:43]} 16. Bf4 {[%emt 0:23:39]} Rd7 {[%emt 0:11:54]} *

[Event "11th LCC FIDE Open 2019"]
[Site "London"]
[Date "2019.12.02"]
[Round "5.35"]
[White "Yoon, Jacob D"]
[Black "Dong, Bao Nghia"]
[Result "1-0"]
[ECO "C06"]
[WhiteElo "2037"]
[BlackElo "2217"]
[Annotator "ChessBase"]
[PlyCount "73"]
[EventDate "2019.11.29"]
[EventType "swiss"]
[EventCountry "ENG"]
[SourceTitle "playchess.com"]
[Source "ChessBase"]
[SourceQuality "1"]
[TimeControl "40/5400+30:1800+30"]

1. e4 {[%emt 0:00:00]} e6 {[%emt 0:06:15]} 2. d4 {[%emt 0:00:00]} d5 {[%emt 0:00:06]} 3. Nd2 {[%emt 0:00:25]} Nf6 {[%emt 0:00:06]} 4. e5 {[%emt 0:00:50]} Nfd7 {[%emt 0:00:06]} 5. Bd3 {[%emt 0:00:23]} c5 {[%emt 0:00:09]} 6. c3 {[%emt 0:00:04]} Nc6 {[%emt 0:00:04]} 7. Ne2 {[%emt 0:00:08]} f6 {[%emt 0:00:04]} 8. Nf4 {[%emt 0:01:10]} Qe7 {[%emt 0:00:07]} 9. Nf3 {[%emt 0:01:37]} fxe5 {[%emt 0:01:12]} 10. dxe5 {[%emt 0:00:09]} c4 {[%emt 0:08:06]} 11. Bc2 {[%emt 0:06:16]} g6 {[%emt 0:10:42]} 12. Nxg6 {[%emt 0:03:12]} Qg7 {[%emt 0:01:37]} 13. Nxh8 {[%emt 0:02:05]} Qxh8 {[%emt 0:09:16]} 14. O-O {[%emt 0:02:34]} h6 {[%emt 0:11:01]} 15. Re1 {[%emt 0:07:57]} Bg7 {[%emt 0:02:35]} 16. Bf4 {[%emt 0:08:02]} Nf8 {[%emt 0:06:54]} 17. b3 {[%emt 0:06:51]} cxb3 {[%emt 0:00:14]} 18. axb3 {[%emt 0:03:24]} Bd7 {[%emt 0:00:07]} 19. Nd4 {[%emt 0:09:17]} Ne7 {[%emt 0:01:23]} 20. c4 {[%emt 0:07:51]} dxc4 {[%emt 0:02:57]} 21. bxc4 {[%emt 0:01:11]} a6 {[%emt 0:00:08]} 22. Qh5+ {[%emt 0:08:34]} Kd8 {[%emt 0:00:05]} 23. Be4 {[%emt 0:01:01]} Rb8 {[%emt 0:02:28]} 24. Bg3 {[%emt 0:05:56]} Kc7 {[%emt 0:06:39]} 25. Bc2 {[%emt 0:05:01]} Rd8 {[%emt 0:00:43]} 26. Qf7 {[%emt 0:02:30]} Re8 {[%emt 0:00:26]} 27. Rab1 {[%emt 0:01:44]} Qg8 {[%emt 0:00:08]} 28. Qf3 {[%emt 0:00:13]} Nc6 {[%emt 0:01:24]} 29. Nb3 {[%emt 0:02:55]} Bc8 {[%emt 0:00:32]} 30. Qc3 {[%emt 0:03:06]} Nd7 {[%emt 0:00:17]} 31. Na5 {[%emt 0:00:06]} Nd8 {[%emt 0:00:47]} 32. Bg6 {[%emt 0:04:37]} Rf8 {[%emt 0:01:01]} 33. c5 {[%emt 0:01:49]} Nc6 {[%emt 0:02:46]} 34. Nxc6 {[%emt 0:00:11]} Kxc6 {[%emt 0:00:32]} 35. Be4+ {[%emt 0:02:47]} Kc7 {[%emt 0:00:06]} 36. Qa5+ {[%emt 0:00:02]} Kb8 {[%emt 0:00:24]} 37. Qxa6 {[%emt 0:00:10]} 1-0

[Event "11th LCC FIDE Open 2019"]
[Site "London"]
[Date "2019.12.02"]
[Round "5.36"]
[White "Yoon, Jacob D"]
[Black "Dong, Bao Nghia"]
[Result "*"]
[ECO "C06"]
[WhiteElo "2037"]
[BlackElo "2217"]
[Annotator "ChessBase"]
[PlyCount "28"]
[EventDate "2019.11.29"]
[EventType "swiss"]
[EventCountry "ENG"]
[SourceTitle "playchess.com"]
[Source "ChessBase"]
[SourceQuality "1"]
[TimeControl "40/5400+30:1800+30"]

1. e4 {[%emt 0:00:00]} e6 {[%emt 0:06:15]} 2. d4 {[%emt 0:00:00]} d5 {[%emt 0:00:06]} 3. Nd2 {[%emt 0:00:25]} Nf6 {[%emt 0:00:06]} 4. e5 {[%emt 0:00:50]} Nfd7 {[%emt 0:00:06]} 5. Bd3 {[%emt 0:00:23]} c5 {[%emt 0:00:09]} 6. c3 {[%emt 0:00:04]} Nc6 {[%emt 0:00:04]} 7. Ne2 {[%emt 0:00:08]} f6 {[%emt 0:00:04]} 8. Nf4 {[%emt 0:01:10]} Qe7 {[%emt 0:00:07]} 9. Nf3 {[%emt 0:01:37]} fxe5 {[%emt 0:01:12]} 10. dxe5 {[%emt 0:00:09]} c4 {[%emt 0:08:06]} 11. Bc2 {[%emt 0:06:16]} g6 {[%emt 0:10:42]} 12. Nxg6 {[%emt 0:03:12]} Qg7 {[%emt 0:01:37]} 13. Nxh8 {[%emt 0:02:05]} Qxh8 {[%emt 0:09:16]} 14. O-O {[%emt 0:02:34]} h6 {[%emt 0:11:01]} *

[Event "11th LCC FIDE Open 2019"]
[Site "London"]
[Date "2019.12.02"]
[Round "5.36"]
[White "Flear, Christine"]
[Black "Rocco, Federico"]
[Result "1/2-1/2"]
[ECO "A60"]
[WhiteElo "2035"]
[BlackElo "2207"]
[Annotator "RC"]
[PlyCount "81"]
[EventDate "2019.11.29"]
[EventType "swiss"]
[EventCountry "ENG"]
[SourceTitle "playchess.com"]
[Source "ChessBase"]
[SourceQuality "1"]
[TimeControl "40/5400+30:1800+30"]

1. d4 {[%emt 0:00:00]} Nf6 {[%emt 0:12:33]} 2. c4 {[%emt 0:00:00]} e6 {[%emt 0:00:06]} 3. g3 {[%emt 0:00:42]} c5 {[%emt 0:00:06]} 4. d5 {[%emt 0:00:53]} exd5 {[%emt 0:00:13]} 5. cxd5 {[%emt 0:00:02]} b5 {[%emt 0:00:10]} 6. Bg2 {[%emt 0:00:27]} d6 {[%emt 0:00:43]} 7. a4 {[%emt 0:17:35]} b4 {[%emt 0:01:40]} 8. b3 {[%emt 0:02:02]} g6 {[%emt 0:14:08]} 9. Bb2 {[%emt 0:00:06]} Bg7 {[%emt 0:00:07]} 10. e4 {[%emt 0:23:03]} O-O {[%emt 0:01:25]} 11. Ne2 {[%emt 0:01:19]} Re8 {[%emt 0:02:14]} 12. f3 {[%emt 0:08:25]} Ng4 {[%emt 0:14:38]} 13. Bxg7 {[%emt 0:01:17]} Ne3 {[%emt 0:00:08]} 14. Qc1 {[%emt 0:02:08]} Nxg2+ {[%emt 0:00:53]} 15. Kf2 {[%emt 0:00:02]} Kxg7 {[%emt 0:00:56]} 16. Kxg2 {[%emt 0:00:43]} Nd7 {[%emt 0:02:10]} 17. h4 {[%emt 0:03:09]} Qf6 {[%emt 0:04:01]} 18. Ra2 {[%emt 0:02:21]} Ne5 {[%emt 0:03:20]} 19. Nf4 {[%emt 0:02:34]} h5 {[%emt 0:05:19]} 20. a5 {[%emt 0:04:32]} Ba6 {[%emt 0:03:42]} 21. Nd2 {[%emt 0:00:27]} Rab8 {[%emt 0:00:38]} 22. Qb1 {[%emt 0:07:27]} c4 {[%emt 0:08:10]} 23. bxc4 {[%emt 0:01:52]} Nxc4 {[%emt 0:08:45]} 24. Nxc4 {[%emt 0:03:54]} Bxc4 {[%emt 0:00:07]} 25. Rc2 {[%emt 0:03:07]} Rec8 {[%emt 0:05:50]} 26. Rhc1 {[%emt 0:00:54]} Qd4 {[%emt 0:01:48]} 27. Ne2 {[%emt 0:01:25]} Bxe2 {[%emt 0:06:17]} 28. Rxc8 {[%emt 0:00:39]} Rxc8 {[%emt 0:00:38]} 29. Rxc8 {[%emt 0:00:09]} Bb5 {[%emt 0:01:50]} 30. Qc1 {[%emt 0:02:42]} a6 {[%emt 0:01:19]} 31. Rc7 {[%emt 0:01:06]} Bd3 {[%emt 0:00:47]} 32. Qf4 {[%emt 0:05:59]} Qf6 {[%emt 0:00:13]} 33. Qd2 {[%emt 0:00:27]} Qd4 {[%emt 0:00:19]} 34. Qf4 {[%emt 0:00:19]} Qb2+ {[%emt 0:00:40]} 35. Kh1 {[%emt 0:00:24]} Qf6 {[%emt 0:00:05]} 36. Qe3 {[%emt 0:00:40]} Qa1+ {[%emt 0:00:52]} 37. Kh2 {[%emt 0:00:10]} Qb2+ {[%emt 0:00:16]} 38. Kg1 {[%emt 0:00:21]} Qa1+ {[%emt 0:00:28]} 39. Kh2 {[%emt 0:00:45]} Qb2+ {[%emt 0:00:40]} 40. Kg1 {[%emt 0:00:56]} Qa1+ {[%emt 0:00:40]} 41. Kh2 {[%emt 0:31:33]} 1/2-1/2

[Event "11th LCC FIDE Open 2019"]
[Site "London"]
[Date "2019.12.02"]
[Round "5.37"]
[White "Deaconu, Mihai Ionut"]
[Black "Manfay, Mate"]
[Result "0-1"]
[ECO "D19"]
[WhiteElo "1957"]
[BlackElo "2197"]
[Annotator "ChessBase"]
[PlyCount "76"]
[EventDate "2019.11.29"]
[EventType "swiss"]
[EventCountry "ENG"]
[SourceTitle "playchess.com"]
[Source "ChessBase"]
[SourceQuality "1"]
[TimeControl "40/5400+30:1800+30"]

1. d4 {[%emt 0:00:00]} d5 {[%emt 0:06:52]} 2. c4 {[%emt 0:00:00]} c6 {[%emt 0:00:07]} 3. Nc3 {[%emt 0:00:00]} Nf6 {[%emt 0:00:09]} 4. Nf3 {[%emt 0:00:06]} dxc4 {[%emt 0:00:15]} 5. a4 {[%emt 0:00:20]} Bf5 {[%emt 0:00:04]} 6. e3 {[%emt 0:00:38]} e6 {[%emt 0:00:03]} 7. Bxc4 {[%emt 0:00:20]} Bb4 {[%emt 0:00:06]} 8. O-O {[%emt 0:00:43]} Nbd7 {[%emt 0:00:03]} 9. Qe2 {[%emt 0:08:48]} Bg6 {[%emt 0:00:22]} 10. Rd1 {[%emt 0:13:11]} O-O {[%emt 0:00:05]} 11. Ne1 {[%emt 0:00:41]} Qe7 {[%emt 0:01:48]} 12. Nc2 {[%emt 0:11:26]} Bxc2 {[%emt 0:17:43]} 13. Qxc2 {[%emt 0:00:06]} e5 {[%emt 0:03:19]} 14. Ne2 {[%emt 0:13:24]} Rad8 {[%emt 0:09:25]} 15. b3 {[%emt 0:01:12]} Nb6 {[%emt 0:12:17]} 16. Bb2 {[%emt 0:01:13]} Nxc4 {[%emt 0:01:41]} 17. Qxc4 {[%emt 0:00:17]} e4 {[%emt 0:01:23]} 18. a5 {[%emt 0:06:24]} a6 {[%emt 0:01:24]} 19. Bc3 {[%emt 0:16:22]} Bd6 {[%emt 0:00:29]} 20. Ng3 {[%emt 0:00:38]} Bxg3 {[%emt 0:04:46]} 21. hxg3 {[%emt 0:00:07]} Nd5 {[%emt 0:00:48]} 22. Bb2 {[%emt 0:00:21]} Rfe8 {[%emt 0:00:18]} 23. Ba3 {[%emt 0:00:51]} Qg5 {[%emt 0:00:38]} 24. Kf1 {[%emt 0:10:10]} Qh5 {[%emt 0:02:58]} 25. Ke1 {[%emt 0:00:22]} Re6 {[%emt 0:01:53]} 26. Rac1 {[%emt 0:00:48]} Rf6 {[%emt 0:00:34]} 27. Qe2 {[%emt 0:01:53]} Qh1+ {[%emt 0:01:04]} 28. Kd2 {[%emt 0:00:10]} Qxg2 {[%emt 0:00:18]} 29. Rf1 {[%emt 0:00:33]} Rf3 {[%emt 0:02:02]} 30. Bc5 {[%emt 0:09:17]} h6 {[%emt 0:00:36]} 31. b4 {[%emt 0:01:01]} Kh7 {[%emt 0:02:13]} 32. Ke1 {[%emt 0:01:07]} Re8 {[%emt 0:02:07]} 33. Rc2 {[%emt 0:02:54]} Re6 {[%emt 0:00:19]} 34. Qc4 {[%emt 0:00:36]} Ref6 {[%emt 0:01:09]} 35. Re2 {[%emt 0:00:04]} Nxe3 {[%emt 0:03:16]} 36. Rxe3 {[%emt 0:00:20]} Rxf2 {[%emt 0:00:07]} 37. Re2 {[%emt 0:01:25]} Qxf1+ {[%emt 0:00:20]} 38. Kd2 {[%emt 0:00:06]} Rxe2+ {[%emt 0:00:23]} 0-1